[Event "*** Titled Tuesday 3|2 Blitz"]
[Site "Chess.com"]
[Date "2017.05.02"]
[Round "5"]
[White "underdogchss"]
[Black "olgerts_indricans"]
[Result "1-0"]
[WhiteElo "2396"]
[BlackElo "2261"]
[TimeControl "180+2"]
[EndTime "14:05:34 PDT"]
[Termination "underdogchss won by resignation"]

1. e4 {[%clk 0:03:02]} 1... c5 {[%clk 0:02:59.4]} 2. Nf3 {[%clk 0:03:03.1]} 2...
e6 {[%clk 0:02:59.8]} 3. d4 {[%clk 0:03:03.1]} 3... cxd4 {[%clk 0:03:00.2]} 4.
Nxd4 {[%clk 0:03:05]} 4... Nc6 {[%clk 0:02:59.9]} 5. Nc3 {[%clk 0:03:05.6]} 5...
Qc7 {[%clk 0:03:00.6]} 6. Be3 {[%clk 0:03:04.3]} 6... a6 {[%clk 0:03:01.1]} 7.
Qd2 {[%clk 0:03:04.8]} 7... Nf6 {[%clk 0:03:01.3]} 8. O-O-O {[%clk 0:03:03.9]}
8... Be7 {[%clk 0:03:01.4]} 9. f3 {[%clk 0:03:01.8]} 9... b5 {[%clk 0:03:00]}
10. g4 {[%clk 0:02:45.6]} 10... Nxd4 {[%clk 0:03:00.2]} 11. Qxd4 {[%clk
0:02:45.8]} 11... Bb7 {[%clk 0:02:50.6]} 12. g5 {[%clk 0:02:37.2]} 12... Nh5
{[%clk 0:02:49.7]} 13. Bh3 {[%clk 0:02:26.2]} 13... Rc8 {[%clk 0:02:21.9]} 14.
Rd2 {[%clk 0:02:04.5]} 14... Bc5 {[%clk 0:01:40.7]} 15. Qxc5 {[%clk 0:01:31.2]}
15... Qxc5 {[%clk 0:01:42.6]} 16. Bxc5 {[%clk 0:01:33.1]} 16... Rxc5 {[%clk
0:01:44.5]} 17. Rg1 {[%clk 0:01:34.4]} 17... h6 {[%clk 0:01:38.7]} 18. g6 {[%clk
0:01:28.8]} 18... fxg6 {[%clk 0:01:28.5]} 19. Rxg6 {[%clk 0:01:20.2]} 19... Nf4
{[%clk 0:01:25.8]} 20. Rxg7 {[%clk 0:01:16.8]} 20... Bc6 {[%clk 0:00:53.6]} 21.
Bf1 {[%clk 0:01:05.9]} 21... Rg5 {[%clk 0:00:53]} 22. Rxg5 {[%clk 0:01:04.6]}
22... hxg5 {[%clk 0:00:54.9]} 23. h3 {[%clk 0:01:04.4]} 23... Ke7 {[%clk
0:00:54.7]} 24. b4 {[%clk 0:00:46.2]} 24... d6 {[%clk 0:00:42.3]} 25. Kb2 {[%clk
0:00:45.9]} 25... Rc8 {[%clk 0:00:36]} 26. a4 {[%clk 0:00:45.5]} 26... bxa4
{[%clk 0:00:36.2]} 27. Bxa6 {[%clk 0:00:45.4]} 27... Rb8 {[%clk 0:00:35.4]} 28.
b5 {[%clk 0:00:45.9]} 28... Nxh3 {[%clk 0:00:35.5]} 29. Ka3 {[%clk 0:00:46.2]}
29... Bd7 {[%clk 0:00:35.9]} 30. Kxa4 {[%clk 0:00:45.6]} 30... Ng1 {[%clk
0:00:34.8]} 31. Rd3 {[%clk 0:00:43.9]} 31... Ra8 {[%clk 0:00:25.5]} 32. Ka5
{[%clk 0:00:44.4]} 32... Nh3 {[%clk 0:00:25.3]} 33. Na4 {[%clk 0:00:41.5]} 33...
Nf4 {[%clk 0:00:25.9]} 34. Rd2 {[%clk 0:00:40.6]} 34... d5 {[%clk 0:00:27]} 35.
e5 {[%clk 0:00:39.9]} 35... Ng6 {[%clk 0:00:25.6]} 36. Nb6 {[%clk 0:00:39.6]}
36... Rb8 {[%clk 0:00:24.3]} 37. Re2 {[%clk 0:00:38.4]} 37... Be8 {[%clk
0:00:24.1]} 38. c3 {[%clk 0:00:30.5]} 38... Nf4 {[%clk 0:00:24.6]} 39. Rd2
{[%clk 0:00:30.1]} 39... Ng6 {[%clk 0:00:23]} 40. Re2 {[%clk 0:00:30.7]} 40...
Nf4 {[%clk 0:00:23.5]} 41. Re3 {[%clk 0:00:30.7]} 41... Ng2 {[%clk 0:00:22.9]}
42. Rd3 {[%clk 0:00:29.1]} 42... Nf4 {[%clk 0:00:23.3]} 43. Rd1 {[%clk
0:00:29.6]} 43... Bh5 {[%clk 0:00:23.7]} 44. Rh1 {[%clk 0:00:28.7]} 44... Bxf3
{[%clk 0:00:24]} 45. Rh7+ {[%clk 0:00:29.3]} 45... Kd8 {[%clk 0:00:24.4]} 46.
Rh8+ {[%clk 0:00:27.2]} 46... Kc7 {[%clk 0:00:25.7]} 47. Rh7+ {[%clk 0:00:26.1]}
47... Kd8 {[%clk 0:00:26.5]} 48. Rh8+ {[%clk 0:00:23]} 48... Kc7 {[%clk
0:00:27.5]} 49. Na8+ {[%clk 0:00:24.6]} 49... Rxa8 {[%clk 0:00:29.1]} 50. Rxa8
{[%clk 0:00:25.6]} 50... d4 {[%clk 0:00:31]} 51. b6+ {[%clk 0:00:26]} 51... Kd7
{[%clk 0:00:31.2]} 52. Ra7+ {[%clk 0:00:15.3]} 52... Kd8 {[%clk 0:00:31.8]} 53.
cxd4 {[%clk 0:00:16.2]} 53... g4 {[%clk 0:00:31.9]} 54. Rg7 {[%clk 0:00:16.7]}
54... Nh5 {[%clk 0:00:30]} 55. Rg8+ {[%clk 0:00:14.8]} 1-0

[Event "*** Titled Tuesday 3|2 Blitz"]
[Site "Chess.com"]
[Date "2017.05.02"]
[Round "5"]
[White "David_Klein"]
[Black "severomorskij"]
[Result "1/2-1/2"]
[WhiteElo "2509"]
[BlackElo "2676"]
[TimeControl "180+2"]
[EndTime "14:05:37 PDT"]
[Termination "Game drawn - insufficient material"]

1. e4 {[%clk 0:03:01.9]} 1... c5 {[%clk 0:03:00.8]} 2. Nf3 {[%clk 0:03:02.7]}
2... Nc6 {[%clk 0:03:02.3]} 3. Bb5 {[%clk 0:03:03.2]} 3... e6 {[%clk 0:03:02.7]}
4. O-O {[%clk 0:03:04.2]} 4... Nge7 {[%clk 0:03:03.8]} 5. Re1 {[%clk 0:03:05.2]}
5... Ng6 {[%clk 0:03:03.7]} 6. c3 {[%clk 0:03:05.7]} 6... d5 {[%clk 0:03:04.7]}
7. exd5 {[%clk 0:03:03.1]} 7... Qxd5 {[%clk 0:03:04.8]} 8. d4 {[%clk 0:02:55.1]}
8... cxd4 {[%clk 0:03:00.5]} 9. Nxd4 {[%clk 0:02:53.9]} 9... Bd7 {[%clk
0:02:57.4]} 10. Be3 {[%clk 0:02:30.4]} 10... Nxd4 {[%clk 0:02:35.7]} 11. Bxd7+
{[%clk 0:02:30.6]} 11... Qxd7 {[%clk 0:02:36.7]} 12. Qxd4 {[%clk 0:02:27.8]}
12... Qxd4 {[%clk 0:02:34.4]} 13. Bxd4 {[%clk 0:02:29.7]} 13... Ne7 {[%clk
0:02:35.5]} 14. Nd2 {[%clk 0:02:08.5]} 14... Nf5 {[%clk 0:02:24.8]} 15. Be5
{[%clk 0:02:06.5]} 15... O-O-O {[%clk 0:02:17.8]} 16. Nf3 {[%clk 0:01:54.1]}
16... f6 {[%clk 0:02:15.5]} 17. Bd4 {[%clk 0:01:35.4]} 17... Nxd4 {[%clk
0:02:11.3]} 18. cxd4 {[%clk 0:01:28.6]} 18... Kd7 {[%clk 0:02:10.1]} 19. Re3
{[%clk 0:01:25.1]} 19... Bd6 {[%clk 0:02:07.3]} 20. Rae1 {[%clk 0:01:26.1]}
20... Rhe8 {[%clk 0:02:06.8]} 21. Rb3 {[%clk 0:01:25.6]} 21... b6 {[%clk
0:02:05]} 22. g3 {[%clk 0:01:26.9]} 22... Rc8 {[%clk 0:02:04.7]} 23. Re2 {[%clk
0:01:28.3]} 23... Rc4 {[%clk 0:02:00.5]} 24. Kg2 {[%clk 0:01:28.9]} 24... Ra4
{[%clk 0:01:45.4]} 25. a3 {[%clk 0:01:29.3]} 25... Rc4 {[%clk 0:01:46.2]} 26. h4
{[%clk 0:01:26.7]} 26... h5 {[%clk 0:01:43.1]} 27. Rd3 {[%clk 0:01:27.3]} 27...
a5 {[%clk 0:01:36.9]} 28. Ne5+ {[%clk 0:01:26.7]} 28... Bxe5 {[%clk 0:01:28.2]}
29. dxe5+ {[%clk 0:01:27.5]} 29... Kc7 {[%clk 0:01:21.7]} 30. exf6 {[%clk
0:01:01.9]} 30... gxf6 {[%clk 0:01:20.3]} 31. Rf3 {[%clk 0:01:03.5]} 31... f5
{[%clk 0:01:10]} 32. Rxf5 {[%clk 0:01:00.6]} 32... exf5 {[%clk 0:01:11.1]} 33.
Rxe8 {[%clk 0:01:02.1]} 33... Rc2 {[%clk 0:01:08.2]} 34. b3 {[%clk 0:01:02.9]}
34... Rb2 {[%clk 0:00:58.3]} 35. Re3 {[%clk 0:01:03.6]} 35... Kd6 {[%clk
0:00:56.1]} 36. Kf3 {[%clk 0:01:03.6]} 36... b5 {[%clk 0:00:51.9]} 37. Kf4
{[%clk 0:00:51.1]} 37... Rxf2+ {[%clk 0:00:51.9]} 38. Kg5 {[%clk 0:00:52.5]}
38... Ra2 {[%clk 0:00:45.7]} 39. a4 {[%clk 0:00:24.5]} 39... bxa4 {[%clk
0:00:43.5]} 40. bxa4 {[%clk 0:00:26.4]} 40... Rxa4 {[%clk 0:00:44.3]} 41. Kxh5
{[%clk 0:00:27.8]} 41... Rg4 {[%clk 0:00:35.3]} 42. Kh6 {[%clk 0:00:20]} 42...
a4 {[%clk 0:00:28.3]} 43. h5 {[%clk 0:00:21.1]} 43... Kc5 {[%clk 0:00:29.1]} 44.
Kh7 {[%clk 0:00:17.1]} 44... Kb4 {[%clk 0:00:29.5]} 45. Re5 {[%clk 0:00:09.1]}
45... a3 {[%clk 0:00:24.5]} 46. Rxf5 {[%clk 0:00:10.1]} 46... a2 {[%clk
0:00:25.2]} 47. Rf1 {[%clk 0:00:11.2]} 47... Rxg3 {[%clk 0:00:22.2]} 48. h6
{[%clk 0:00:12.1]} 48... Rb3 {[%clk 0:00:22.2]} 49. Ra1 {[%clk 0:00:12.7]} 49...
Ka3 {[%clk 0:00:21.6]} 50. Kg7 {[%clk 0:00:12.1]} 50... Rg3+ {[%clk 0:00:21.9]}
51. Kf7 {[%clk 0:00:13]} 51... Rf3+ {[%clk 0:00:22]} 52. Kg7 {[%clk 0:00:14.1]}
52... Rg3+ {[%clk 0:00:23.3]} 53. Kf7 {[%clk 0:00:15.2]} 53... Rh3 {[%clk
0:00:24.5]} 54. Kg7 {[%clk 0:00:16.2]} 54... Kb2 {[%clk 0:00:25.7]} 55. Rxa2+
{[%clk 0:00:16.8]} 55... Kxa2 {[%clk 0:00:26.5]} 56. h7 {[%clk 0:00:18.3]} 56...
Kb3 {[%clk 0:00:27.5]} 57. h8=Q {[%clk 0:00:19]} 57... Rxh8 {[%clk 0:00:28.5]}
58. Kxh8 {[%clk 0:00:20.9]} 1/2-1/2

[Event "*** Titled Tuesday 3|2 Blitz"]
[Site "Chess.com"]
[Date "2017.05.02"]
[Round "5"]
[White "Abdodi"]
[Black "politeplayer"]
[Result "1-0"]
[WhiteElo "2051"]
[BlackElo "2068"]
[TimeControl "180+2"]
[EndTime "14:06:04 PDT"]
[Termination "Abdodi won by resignation"]

1. d4 {[%clk 0:03:01.9]} 1... e6 {[%clk 0:02:55.2]} 2. c4 {[%clk 0:03:01.9]}
2... d5 {[%clk 0:02:55.8]} 3. Nc3 {[%clk 0:03:01.8]} 3... c5 {[%clk 0:02:57.1]}
4. Nf3 {[%clk 0:03:00.8]} 4... cxd4 {[%clk 0:02:55.3]} 5. Nxd4 {[%clk
0:03:00.1]} 5... Nf6 {[%clk 0:02:56.9]} 6. g3 {[%clk 0:03:00.2]} 6... e5 {[%clk
0:02:57.1]} 7. Nc2 {[%clk 0:02:53.3]} 7... d4 {[%clk 0:02:57.6]} 8. Nb1 {[%clk
0:02:48.8]} 8... Nc6 {[%clk 0:02:53]} 9. Bg2 {[%clk 0:02:49]} 9... Bf5 {[%clk
0:02:42.8]} 10. O-O {[%clk 0:02:47.9]} 10... Qd7 {[%clk 0:02:39.9]} 11. Bg5
{[%clk 0:02:45.2]} 11... Be7 {[%clk 0:02:36.7]} 12. Nd2 {[%clk 0:02:36.1]} 12...
O-O {[%clk 0:02:28.9]} 13. Bxf6 {[%clk 0:02:30.5]} 13... Bxf6 {[%clk 0:02:28.9]}
14. Ne4 {[%clk 0:02:32.4]} 14... Be7 {[%clk 0:02:26.8]} 15. Ne1 {[%clk
0:02:26.1]} 15... Rad8 {[%clk 0:02:25.3]} 16. Nd3 {[%clk 0:02:26.5]} 16... b6
{[%clk 0:02:11.5]} 17. Qa4 {[%clk 0:02:24.4]} 17... Rc8 {[%clk 0:02:03.6]} 18.
Qb5 {[%clk 0:02:20.5]} 18... f6 {[%clk 0:01:33.2]} 19. Rfd1 {[%clk 0:02:17.9]}
19... Kh8 {[%clk 0:01:28.9]} 20. Rac1 {[%clk 0:02:15.4]} 20... Bh3 {[%clk
0:01:16.9]} 21. Bh1 {[%clk 0:02:07.5]} 21... f5 {[%clk 0:01:14]} 22. Nd2 {[%clk
0:01:33]} 22... e4 {[%clk 0:00:44.2]} 23. Nf4 {[%clk 0:01:29.1]} 23... d3 {[%clk
0:00:37.3]} 24. exd3 {[%clk 0:01:16.3]} 24... Bg4 {[%clk 0:00:29.2]} 25. Re1
{[%clk 0:01:13.5]} 25... Bb4 {[%clk 0:00:24.3]} 26. Rc2 {[%clk 0:00:34.6]} 26...
exd3 {[%clk 0:00:23.6]} 27. Bxc6 {[%clk 0:00:22]} 27... Qxc6 {[%clk 0:00:24.5]}
28. Qxc6 {[%clk 0:00:20.8]} 28... Rxc6 {[%clk 0:00:23.5]} 29. Nxd3 {[%clk
0:00:22.1]} 29... Bxd2 {[%clk 0:00:20.9]} 30. Rxd2 {[%clk 0:00:23]} 30... Rxc4
{[%clk 0:00:21.4]} 31. Ne5 {[%clk 0:00:23.3]} 31... Rcc8 {[%clk 0:00:19]} 32.
Nxg4 {[%clk 0:00:20.9]} 32... fxg4 {[%clk 0:00:19.5]} 33. Re7 {[%clk 0:00:22.4]}
33... Rc1+ {[%clk 0:00:18.4]} 34. Kg2 {[%clk 0:00:23.1]} 34... h5 {[%clk
0:00:19]} 35. Re5 {[%clk 0:00:18.3]} 35... g6 {[%clk 0:00:17.2]} 36. Re7 {[%clk
0:00:19]} 36... Rc6 {[%clk 0:00:12.6]} 37. Rdd7 {[%clk 0:00:18.1]} 37... Rfc8
{[%clk 0:00:13.2]} 38. Rh7+ {[%clk 0:00:18.4]} 38... Kg8 {[%clk 0:00:14.4]} 39.
Rdg7+ {[%clk 0:00:19.9]} 39... Kf8 {[%clk 0:00:15.5]} 40. Rxa7 {[%clk
0:00:21.5]} 40... Kg8 {[%clk 0:00:14]} 41. Rag7+ {[%clk 0:00:21.6]} 41... Kf8
{[%clk 0:00:14.9]} 42. Rd7 {[%clk 0:00:22.6]} 42... Kg8 {[%clk 0:00:15.4]} 43.
Rdg7+ {[%clk 0:00:23.7]} 43... Kf8 {[%clk 0:00:16.3]} 44. Rb7 {[%clk 0:00:22.5]}
44... Kg8 {[%clk 0:00:17.1]} 45. Rhf7 {[%clk 0:00:23.4]} 45... Re8 {[%clk
0:00:15.3]} 46. Rf4 {[%clk 0:00:21.5]} 46... Rc2 {[%clk 0:00:15.2]} 47. Rxb6
{[%clk 0:00:22.3]} 47... g5 {[%clk 0:00:16]} 48. Rf5 {[%clk 0:00:22.9]} 48...
Kh7 {[%clk 0:00:15.4]} 49. a4 {[%clk 0:00:21.8]} 49... Ree2 {[%clk 0:00:14.1]}
50. a5 {[%clk 0:00:22.5]} 50... h4 {[%clk 0:00:15.3]} 51. gxh4 {[%clk
0:00:23.5]} 51... gxh4 {[%clk 0:00:16.1]} 52. a6 {[%clk 0:00:23.9]} 52... Rxb2
{[%clk 0:00:12.3]} 53. Rxb2 {[%clk 0:00:23.9]} 53... Rxb2 {[%clk 0:00:13.2]} 54.
Ra5 {[%clk 0:00:24.7]} 54... Rb3 {[%clk 0:00:13.7]} 55. a7 {[%clk 0:00:25.3]}
55... h3+ {[%clk 0:00:12.9]} 56. Kf1 {[%clk 0:00:26.9]} 56... Rb1+ {[%clk
0:00:14.1]} 57. Ke2 {[%clk 0:00:28.1]} 57... Rb2+ {[%clk 0:00:15.2]} 58. Ke3
{[%clk 0:00:28.7]} 58... g3 {[%clk 0:00:15.4]} 59. fxg3 {[%clk 0:00:29]} 1-0

[Event "*** Titled Tuesday 3|2 Blitz"]
[Site "Chess.com"]
[Date "2017.05.02"]
[Round "5"]
[White "GMAkobianSTL"]
[Black "kleinebeer98"]
[Result "1/2-1/2"]
[WhiteElo "2598"]
[BlackElo "2468"]
[TimeControl "180+2"]
[EndTime "14:06:16 PDT"]
[Termination "Game drawn by agreement"]

1. d4 {[%clk 0:03:02]} 1... Nf6 {[%clk 0:03:00.2]} 2. c4 {[%clk 0:03:01.7]} 2...
e6 {[%clk 0:03:01.4]} 3. Nf3 {[%clk 0:03:01.2]} 3... Bb4+ {[%clk 0:03:00.2]} 4.
Nbd2 {[%clk 0:02:48.8]} 4... O-O {[%clk 0:03:01.1]} 5. a3 {[%clk 0:02:48.8]}
5... Be7 {[%clk 0:03:02.7]} 6. e4 {[%clk 0:02:48.5]} 6... d5 {[%clk 0:03:04.3]}
7. e5 {[%clk 0:02:47.7]} 7... Nfd7 {[%clk 0:03:05.4]} 8. Bd3 {[%clk 0:02:46.7]}
8... c5 {[%clk 0:03:04.9]} 9. cxd5 {[%clk 0:02:45.7]} 9... exd5 {[%clk
0:03:05.8]} 10. Qc2 {[%clk 0:02:46.4]} 10... h6 {[%clk 0:03:02.2]} 11. O-O
{[%clk 0:02:40.5]} 11... Nc6 {[%clk 0:03:01.3]} 12. Re1 {[%clk 0:02:35.8]} 12...
a5 {[%clk 0:02:53.5]} 13. Bb5 {[%clk 0:02:23]} 13... Qb6 {[%clk 0:02:38.9]} 14.
a4 {[%clk 0:02:16.9]} 14... cxd4 {[%clk 0:02:09.8]} 15. Nb3 {[%clk 0:02:14.9]}
15... Nb4 {[%clk 0:01:59.1]} 16. Qd1 {[%clk 0:02:06.9]} 16... Nc5 {[%clk
0:01:51.9]} 17. Nfxd4 {[%clk 0:01:59]} 17... Qg6 {[%clk 0:01:33.7]} 18. Nxc5
{[%clk 0:01:51.6]} 18... Bxc5 {[%clk 0:01:35.6]} 19. Be3 {[%clk 0:01:51.5]}
19... Bh3 {[%clk 0:01:05.7]} 20. Qf3 {[%clk 0:01:20.3]} 20... Bg4 {[%clk
0:01:05.4]} 21. Qg3 {[%clk 0:01:21.3]} 21... Bxd4 {[%clk 0:01:02.1]} 22. Bxd4
{[%clk 0:01:22.1]} 22... Nc2 {[%clk 0:01:03.7]} 23. Bd3 {[%clk 0:01:19.5]} 23...
Bf5 {[%clk 0:00:59]} 24. Bxc2 {[%clk 0:01:00.5]} 24... Bxc2 {[%clk 0:00:45]} 25.
Qxg6 {[%clk 0:00:42.7]} 25... Bxg6 {[%clk 0:00:46.9]} 26. e6 {[%clk 0:00:43.4]}
26... fxe6 {[%clk 0:00:32.3]} 27. Rxe6 {[%clk 0:00:43.3]} 27... Bf5 {[%clk
0:00:30.2]} 28. Rb6 {[%clk 0:00:40.2]} 28... Rf7 {[%clk 0:00:28]} 29. f3 {[%clk
0:00:40.5]} 29... Rc8 {[%clk 0:00:21.4]} 30. Rb5 {[%clk 0:00:36.3]} 30... Rc4
{[%clk 0:00:17.8]} 31. Rxd5 {[%clk 0:00:30.6]} 31... Bc2 {[%clk 0:00:09.8]} 32.
Bc3 {[%clk 0:00:26.8]} 32... Bxa4 {[%clk 0:00:09.9]} 33. Rxa5 {[%clk 0:00:26.5]}
33... Bc6 {[%clk 0:00:10.9]} 34. Rd1 {[%clk 0:00:21.2]} 34... Kh7 {[%clk
0:00:11.1]} 35. Kf2 {[%clk 0:00:20.4]} 35... Rcf4 {[%clk 0:00:09.6]} 36. Kg3
{[%clk 0:00:20.2]} 36... R4f5 {[%clk 0:00:10.5]} 37. Rxf5 {[%clk 0:00:19.9]}
37... Rxf5 {[%clk 0:00:12.4]} 38. Rd8 {[%clk 0:00:19.6]} 38... Rg5+ {[%clk
0:00:10.6]} 39. Kf2 {[%clk 0:00:20.2]} 39... Rf5 {[%clk 0:00:11.8]} 40. Rc8
{[%clk 0:00:19.7]} 40... Rf7 {[%clk 0:00:12]} 41. h4 {[%clk 0:00:20]} 41... Kg6
{[%clk 0:00:09.6]} 42. Rg8 {[%clk 0:00:19.1]} 42... Kh7 {[%clk 0:00:05.3]} 43.
Rd8 {[%clk 0:00:19.2]} 43... Kg6 {[%clk 0:00:06.5]} 44. Rd6+ {[%clk 0:00:18.2]}
44... Kh7 {[%clk 0:00:06.8]} 45. h5 {[%clk 0:00:17.3]} 45... Rf5 {[%clk
0:00:03.7]} 46. Rg6 {[%clk 0:00:17.7]} 46... Rg5 {[%clk 0:00:05.1]} 47. Re6
{[%clk 0:00:08.2]} 47... Rxh5 {[%clk 0:00:04.9]} 48. g4 {[%clk 0:00:08.8]} 48...
Rh3 {[%clk 0:00:04.2]} 49. Re3 {[%clk 0:00:08.5]} 49... h5 {[%clk 0:00:04.2]}
50. g5 {[%clk 0:00:06.6]} 50... h4 {[%clk 0:00:04.9]} 51. Re7 {[%clk 0:00:06.2]}
51... Rxf3+ {[%clk 0:00:05.7]} 52. Ke2 {[%clk 0:00:07.8]} 52... Kg6 {[%clk
0:00:04.3]} 53. Rxg7+ {[%clk 0:00:08.6]} 53... Kh5 {[%clk 0:00:05.4]} 54. g6
{[%clk 0:00:06.7]} 54... Rg3 {[%clk 0:00:03.8]} 55. Rh7+ {[%clk 0:00:07.5]}
55... Kxg6 {[%clk 0:00:05]} 56. Rxh4 {[%clk 0:00:08.4]} 56... Kf5 {[%clk
0:00:05.8]} 57. Rh5+ {[%clk 0:00:07]} 57... Ke6 {[%clk 0:00:06.2]} 58. Re5+
{[%clk 0:00:07.7]} 58... Kd7 {[%clk 0:00:06.5]} 59. Re3 {[%clk 0:00:09.6]} 59...
Rxe3+ {[%clk 0:00:07.5]} 60. Kxe3 {[%clk 0:00:10.7]} 60... Kd6 {[%clk
0:00:09.4]} 61. Kd4 {[%clk 0:00:11.7]} 61... Kd7 {[%clk 0:00:10.1]} 62. Kc5
{[%clk 0:00:12.5]} 62... Kc8 {[%clk 0:00:11.4]} 63. b4 {[%clk 0:00:13.8]} 63...
Bh1 {[%clk 0:00:13.3]} 64. b5 {[%clk 0:00:15.1]} 64... Bg2 {[%clk 0:00:15.2]}
65. b6 {[%clk 0:00:17]} 65... Bh1 {[%clk 0:00:16.9]} 66. Be5 {[%clk 0:00:18]}
66... Bg2 {[%clk 0:00:18.8]} 1/2-1/2

[Event "*** Titled Tuesday 3|2 Blitz"]
[Site "Chess.com"]
[Date "2017.05.02"]
[Round "5"]
[White "DryCounty"]
[Black "hypert"]
[Result "0-1"]
[WhiteElo "2458"]
[BlackElo "2283"]
[TimeControl "180+2"]
[EndTime "14:06:18 PDT"]
[Termination "hypert won by resignation"]

1. e4 {[%clk 0:03:02]} 1... c5 {[%clk 0:03:00.3]} 2. Nf3 {[%clk 0:03:02.4]} 2...
e6 {[%clk 0:03:01.8]} 3. d4 {[%clk 0:03:03.2]} 3... cxd4 {[%clk 0:03:03.7]} 4.
Nxd4 {[%clk 0:03:04.2]} 4... Nc6 {[%clk 0:03:05.4]} 5. Nc3 {[%clk 0:03:04.7]}
5... Qc7 {[%clk 0:03:06.9]} 6. g3 {[%clk 0:03:05.1]} 6... a6 {[%clk 0:03:06.3]}
7. Bg2 {[%clk 0:03:05.8]} 7... Nf6 {[%clk 0:03:07.4]} 8. O-O {[%clk 0:03:06.7]}
8... Nxd4 {[%clk 0:03:07.9]} 9. Qxd4 {[%clk 0:03:07.3]} 9... Bc5 {[%clk
0:03:09.6]} 10. Bf4 {[%clk 0:03:08.1]} 10... d6 {[%clk 0:03:10.8]} 11. Qd2
{[%clk 0:03:08.6]} 11... h6 {[%clk 0:03:08.2]} 12. Rad1 {[%clk 0:03:04]} 12...
e5 {[%clk 0:03:03.8]} 13. Be3 {[%clk 0:03:04.8]} 13... Be6 {[%clk 0:03:04.6]}
14. Bxc5 {[%clk 0:03:03.3]} 14... dxc5 {[%clk 0:03:06.5]} 15. f4 {[%clk
0:02:59.3]} 15... O-O {[%clk 0:02:58.3]} 16. Nd5 {[%clk 0:02:46.3]} 16... Bxd5
{[%clk 0:02:59.2]} 17. exd5 {[%clk 0:02:47.4]} 17... Qd6 {[%clk 0:03:00.9]} 18.
fxe5 {[%clk 0:02:44.6]} 18... Qxe5 {[%clk 0:03:02.8]} 19. c4 {[%clk 0:02:44.1]}
19... Qd6 {[%clk 0:03:02]} 20. Qf4 {[%clk 0:02:39.3]} 20... Rfd8 {[%clk
0:03:00]} 21. Qxd6 {[%clk 0:02:36.5]} 21... Rxd6 {[%clk 0:03:01.3]} 22. b4
{[%clk 0:02:36.9]} 22... b6 {[%clk 0:03:01]} 23. bxc5 {[%clk 0:02:37.4]} 23...
bxc5 {[%clk 0:03:01.7]} 24. Rb1 {[%clk 0:02:36.8]} 24... Nd7 {[%clk 0:02:57.2]}
25. Rfe1 {[%clk 0:02:32.5]} 25... Kf8 {[%clk 0:02:55.9]} 26. Bf1 {[%clk
0:02:25.3]} 26... Re8 {[%clk 0:02:53.4]} 27. Rxe8+ {[%clk 0:02:17.8]} 27... Kxe8
{[%clk 0:02:53.9]} 28. Rb7 {[%clk 0:02:15.2]} 28... Rb6 {[%clk 0:02:46.7]} 29.
Ra7 {[%clk 0:02:13.7]} 29... Ne5 {[%clk 0:02:38.8]} 30. Rc7 {[%clk 0:02:05.2]}
30... Rb2 {[%clk 0:02:39.2]} 31. Bg2 {[%clk 0:01:40.5]} 31... Nxc4 {[%clk
0:02:36.3]} 32. Rxc5 {[%clk 0:01:34.9]} 32... Ne3 {[%clk 0:02:35.7]} 33. Bf3
{[%clk 0:01:34.9]} 33... Rxa2 {[%clk 0:02:35.8]} 34. d6 {[%clk 0:01:16.1]} 34...
Kd7 {[%clk 0:02:11.3]} 35. Rc7+ {[%clk 0:01:08]} 35... Kxd6 {[%clk 0:02:11.8]}
36. Rxf7 {[%clk 0:01:09.2]} 36... g5 {[%clk 0:02:12.8]} 37. h3 {[%clk 0:01:00]}
37... Ke5 {[%clk 0:02:04.1]} 38. Rh7 {[%clk 0:00:54.1]} 38... Nf5 {[%clk
0:02:02]} 39. Bg4 {[%clk 0:00:35.3]} 39... Nxg3 {[%clk 0:01:59.8]} 40. Rxh6
{[%clk 0:00:35.1]} 40... Ne4 {[%clk 0:01:48.2]} 41. Bf3 {[%clk 0:00:27.1]} 41...
Kf4 {[%clk 0:01:29.4]} 42. Bg4 {[%clk 0:00:20.5]} 42... a5 {[%clk 0:01:24.1]}
43. Kf1 {[%clk 0:00:19.3]} 43... a4 {[%clk 0:01:22]} 44. Be6 {[%clk 0:00:20]}
44... Rb2 {[%clk 0:01:13.9]} 45. Rh8 {[%clk 0:00:18.3]} 45... Ng3+ {[%clk
0:01:10.1]} 46. Kg1 {[%clk 0:00:16.8]} 46... Ne2+ {[%clk 0:01:09.4]} 47. Kf1
{[%clk 0:00:17.4]} 47... Nd4 {[%clk 0:01:07.6]} 48. Bd5 {[%clk 0:00:16.4]} 48...
Ke5 {[%clk 0:01:05.7]} 49. Bc4 {[%clk 0:00:14]} 49... Rc2 {[%clk 0:01:05.9]} 50.
Bf7 {[%clk 0:00:13]} 50... a3 {[%clk 0:01:04.6]} 51. Ra8 {[%clk 0:00:13.8]}
51... Rc3 {[%clk 0:01:02.4]} 52. Kg2 {[%clk 0:00:13.2]} 52... Kf4 {[%clk
0:01:02.1]} 53. Ra4 {[%clk 0:00:11.5]} 53... Ke3 {[%clk 0:00:59.3]} 54. Kg3
{[%clk 0:00:10.3]} 54... Nf5+ {[%clk 0:00:43.8]} 55. Kg2 {[%clk 0:00:11.3]}
55... Nd6 {[%clk 0:00:38.4]} 56. Bg8 {[%clk 0:00:11.5]} 56... Ne4 {[%clk
0:00:39.1]} 57. Kf1 {[%clk 0:00:07.6]} 57... Kf3 {[%clk 0:00:35]} 58. Kg1 {[%clk
0:00:08.1]} 58... Rc1+ {[%clk 0:00:17.5]} 59. Kh2 {[%clk 0:00:09]} 59... Rc2+
{[%clk 0:00:15.8]} 60. Kg1 {[%clk 0:00:10.1]} 60... Rg2+ {[%clk 0:00:16]} 61.
Kf1 {[%clk 0:00:10.4]} 61... Rf2+ {[%clk 0:00:17.4]} 62. Ke1 {[%clk 0:00:09.4]}
62... Re2+ {[%clk 0:00:17.2]} 63. Kd1 {[%clk 0:00:05.8]} 63... Nc3+ {[%clk
0:00:18]} 64. Kc1 {[%clk 0:00:06.8]} 64... Nxa4 {[%clk 0:00:19.1]} 0-1